[Event "44th Chess Olympiad Women 2022"]
[Site "Chennai"]
[Date "2022.08.09"]
[Round "11.46"]
[White "Ahmad Murad, Fatema Alzahraa."]
[Black "Farrugia, Jamie"]
[Result "1-0"]
[ECO "D60"]
[WhiteElo "1791"]
[BlackElo "1547"]
[Annotator "NA RC COMBH"]
[PlyCount "105"]
[EventDate "2022.07.29"]
[EventType "team-tourn"]
[EventCountry "IND"]
[SourceTitle "playchess.com"]
[Source "ChessBase"]
[SourceQuality "1"]
[WhiteTeam "Syria"]
[BlackTeam "Malta"]
[WhiteTeamCountry "SYR"]
[BlackTeamCountry "MLT"]
[TimeControl "40/5400+30:1800+30"]

1. d4 {[%emt 0:00:05]} d5 {[%emt 0:00:09]} 2. c4 {[%emt 0:00:13]} c6 {[%emt 0:00:05]} 3. Nc3 {[%emt 0:00:37]} Nf6 {[%emt 0:00:50]} 4. Nf3 {[%emt 0:01:28]} e6 {[%emt 0:01:43]} 5. Bg5 {[%emt 0:00:46]} Be7 {[%emt 0:00:14]} 6. e3 {[%emt 0:00:58]} O-O {[%emt 0:00:45]} 7. Be2 {[%emt 0:01:09]} Nbd7 {[%emt 0:00:55]} 8. O-O {[%emt 0:00:51]} b6 {[%emt 0:00:34]} 9. Qc2 {[%emt 0:02:06]} Bb7 {[%emt 0:03:19]} 10. Rfd1 {[%emt 0:05:04]} Qc7 {[%emt 0:08:06]} 11. Rac1 {[%emt 0:10:12]} c5 {[%emt 0:05:02]} 12. cxd5 {[%emt 0:01:59]} exd5 {[%emt 0:13:06]} 13. Qf5 {[%emt 0:02:25]} c4 {[%emt 0:04:20]} 14. b3 {[%emt 0:00:48]} Rfc8 {[%emt 0:06:17]} 15. Nb5 {[%emt 0:07:04]} Qd8 {[%emt 0:06:26]} 16. Ne5 {[%emt 0:03:26]} a6 {[%emt 0:10:42]} 17. Nc3 {[%emt 0:00:10]} b5 {[%emt 0:00:14]} 18. Nxd7 {[%emt 0:01:48]} Nxd7 {[%emt 0:00:41]} 19. Bxe7 {[%emt 0:00:11]} Qxe7 {[%emt 0:00:06]} 20. Nxd5 {[%emt 0:00:10]} Qd6 {[%emt 0:05:39]} 21. Bf3 {[%emt 0:05:14]} Ra7 {[%emt 0:02:37]} 22. Rc3 {[%emt 0:11:15]} Nb6 {[%emt 0:04:11]} 23. Nxb6 {[%emt 0:00:21]} Qxb6 {[%emt 0:00:05]} 24. Bxb7 {[%emt 0:00:04]} Qxb7 {[%emt 0:00:14]} 25. Rdc1 {[%emt 0:00:21]} g6 {[%emt 0:02:22]} 26. Qc2 {[%emt 0:00:38]} Qd5 {[%emt 0:03:20]} 27. bxc4 {[%emt 0:00:34]} bxc4 {[%emt 0:00:19]} 28. Rxc4 {[%emt 0:00:10]} Rxc4 {[%emt 0:01:04]} 29. Qxc4 {[%emt 0:00:06]} Qxc4 {[%emt 0:01:57]} 30. Rxc4 {[%emt 0:00:08]} Kf8 {[%emt 0:00:02]} 31. g3 {[%emt 0:00:36]} Ke7 {[%emt 0:00:05]} 32. Kg2 {[%emt 0:00:16]} Kd6 {[%emt 0:00:26]} 33. Kf3 {[%emt 0:00:16]} Rb7 {[%emt 0:01:27]} 34. Rc2 {[%emt 0:02:13]} h5 {[%emt 0:01:40]} 35. e4 {[%emt 0:00:51]} Rb4 {[%emt 0:01:57]} 36. Ke3 {[%emt 0:01:33]} f6 {[%emt 0:00:25]} 37. d5 {[%emt 0:00:22]} Rb6 {[%emt 0:00:53]} 38. Rc6+ {[%emt 0:00:38]} Rxc6 {[%emt 0:00:09]} 39. dxc6 {[%emt 0:00:07]} Kxc6 {[%emt 0:00:07]} 40. Kd4 {[%emt 0:00:03]} Kd6 {[%emt 0:01:11]} 41. f4 {[%emt 0:30:13]} g5 {[%emt 0:36:15]} 42. fxg5 {[%emt 0:01:20]} fxg5 {[%emt 0:03:57]} 43. e5+ {[%emt 0:00:07]} Ke6 {[%emt 0:00:08]} 44. Ke4 {[%emt 0:00:03]} a5 {[%emt 0:04:10]} 45. a4 {[%emt 0:00:33]} h4 {[%emt 0:00:00]} 46. g4 {[%emt 0:00:00]} h3 {[%emt 0:00:00]} 47. Kd4 {[%emt 0:00:00]} Ke7 {[%emt 0:00:00]} 48. Kd5 {[%emt 0:00:00]} Kd7 {[%emt 0:00:00]} 49. e6+ {[%emt 0:00:00]} Ke8 {[%emt 0:00:00]} 50. Ke5 {[%emt 0:00:00]} Ke7 {[%emt 0:00:00]} 51. Kf5 {[%emt 0:00:00]} Ke8 {[%emt 0:00:00]} 52. Kxg5 {[%emt 0:00:00]} Ke7 {[%emt 0:00:00]} 53. Kf5 {[%emt 0:00:00]} 1-0

[Event "44th Chess Olympiad Women 2022"]
[Site "Chennai"]
[Date "2022.08.09"]
[Round "11.46"]
[White "Psaila, Uranchimeg"]
[Black "Mahmoud, Roula"]
[Result "0-1"]
[ECO "A48"]
[WhiteElo "1395"]
[BlackElo "1765"]
[Annotator "NA RC COMBH"]
[PlyCount "84"]
[EventDate "2022.07.29"]
[EventType "team-tourn"]
[EventCountry "IND"]
[SourceTitle "playchess.com"]
[Source "ChessBase"]
[SourceQuality "1"]
[WhiteTeam "Malta"]
[BlackTeam "Syria"]
[WhiteTeamCountry "MLT"]
[BlackTeamCountry "SYR"]
[TimeControl "40/5400+30:1800+30"]

1. d4 {[%emt 0:00:07]} Nf6 {[%emt 0:00:06]} 2. Bf4 {[%emt 0:00:10]} g6 {[%emt 0:00:17]} 3. Nf3 {[%emt 0:00:21]} Bg7 {[%emt 0:00:05]} 4. c3 {[%emt 0:00:21]} d6 {[%emt 0:00:04]} 5. h3 {[%emt 0:00:17]} O-O {[%emt 0:00:14]} 6. e3 {[%emt 0:00:20]} Nbd7 {[%emt 0:03:33]} 7. Nbd2 {[%emt 0:04:02]} c5 {[%emt 0:00:29]} 8. Be2 {[%emt 0:08:41]} a6 {[%emt 0:01:24]} 9. a4 {[%emt 0:00:39]} b6 {[%emt 0:00:41]} 10. O-O {[%emt 0:00:20]} Bb7 {[%emt 0:00:32]} 11. Bh2 {[%emt 0:01:50]} Qc7 {[%emt 0:06:40]} 12. Qb3 {[%emt 0:03:25]} Bc6 {[%emt 0:03:10]} 13. Rfd1 {[%emt 0:25:24]} Qb7 {[%emt 0:02:01]} 14. a5 {[%emt 0:09:02]} b5 {[%emt 0:01:49]} 15. c4 {[%emt 0:07:13]} bxc4 {[%emt 0:03:48]} 16. Qxb7 {[%emt 0:00:21]} Bxb7 {[%emt 0:00:05]} 17. Nxc4 {[%emt 0:04:03]} Rab8 {[%emt 0:10:04]} 18. Nxd6 {[%emt 0:01:52]} Bxf3 {[%emt 0:12:10]} 19. Bxf3 {[%emt 0:04:04]} exd6 {[%emt 0:00:23]} 20. Bxd6 {[%emt 0:00:51]} cxd4 {[%emt 0:00:11]} 21. Bxb8 {[%emt 0:04:09]} Rxb8 {[%emt 0:00:18]} 22. Rab1 {[%emt 0:01:47]} dxe3 {[%emt 0:01:31]} 23. fxe3 {[%emt 0:00:14]} Bf8 {[%emt 0:03:56]} 24. Kf1 {[%emt 0:05:56]} Bb4 {[%emt 0:01:22]} 25. Ra1 {[%emt 0:01:37]} Nc5 {[%emt 0:00:42]} 26. Bd5 {[%emt 0:04:05]} Nxd5 {[%emt 0:09:19]} 27. Rxd5 {[%emt 0:00:12]} Rb5 {[%emt 0:00:58]} 28. Ke2 {[%emt 0:04:33]} Bxa5 {[%emt 0:01:59]} 29. Rb1 {[%emt 0:01:17]} Bb4 {[%emt 0:05:04]} 30. Rd4 {[%emt 0:01:40]} Ne6 {[%emt 0:00:54]} 31. Rc4 {[%emt 0:00:48]} a5 {[%emt 0:00:48]} 32. Rc8+ {[%emt 0:00:19]} Kg7 {[%emt 0:00:16]} 33. Ra8 {[%emt 0:00:10]} Nc7 {[%emt 0:02:25]} 34. Ra7 {[%emt 0:00:17]} Rc5 {[%emt 0:03:46]} 35. Kd3 {[%emt 0:00:50]} Nb5 {[%emt 0:00:41]} 36. Ra8 {[%emt 0:00:34]} Nd6 {[%emt 0:00:37]} 37. Ra6 {[%emt 0:00:25]} Rd5+ {[%emt 0:00:22]} 38. Ke2 {[%emt 0:00:35]} Rd2+ {[%emt 0:01:51]} 39. Kf3 {[%emt 0:00:10]} Nc4 {[%emt 0:02:02]} 40. b3 {[%emt 0:02:19]} Ne5+ {[%emt 0:01:47]} 41. Ke4 {[%emt 0:33:14]} Nd3 {[%emt 0:30:25]} 42. g4 {[%emt 0:01:36]} Nc5+ {[%emt 0:01:19]} 0-1

[Event "44th Chess Olympiad Women 2022"]
[Site "Chennai"]
[Date "2022.08.09"]
[Round "11.47"]
[White "Dubois, Martine"]
[Black "Blackman, Katrina"]
[Result "1-0"]
[ECO "C10"]
[WhiteElo "1782"]
[BlackElo "1691"]
[Annotator "NA RC COMBH"]
[PlyCount "63"]
[EventDate "2022.07.29"]
[EventType "team-tourn"]
[EventCountry "IND"]
[SourceTitle "playchess.com"]
[Source "ChessBase"]
[SourceQuality "1"]
[WhiteTeam "Monaco"]
[BlackTeam "Barbados"]
[WhiteTeamCountry "MNC"]
[BlackTeamCountry "BAR"]
[TimeControl "40/5400+30:1800+30"]

1. e4 {[%emt 0:00:02]} e6 {[%emt 0:00:03]} 2. Nf3 {[%emt 0:00:04]} d5 {[%emt 0:00:08]} 3. Nc3 {[%emt 0:00:06]} dxe4 {[%emt 0:02:12]} 4. Nxe4 {[%emt 0:00:06]} Nc6 {[%emt 0:00:13]} 5. d4 {[%emt 0:00:51]} Be7 {[%emt 0:00:47]} 6. c3 {[%emt 0:03:33]} Nf6 {[%emt 0:00:05]} 7. Bd3 {[%emt 0:01:05]} h6 {[%emt 0:02:48]} 8. Qe2 {[%emt 0:04:08]} Nd5 {[%emt 0:05:16]} 9. Ne5 {[%emt 0:03:23]} Nxe5 {[%emt 0:02:52]} 10. dxe5 {[%emt 0:00:03]} Bd7 {[%emt 0:00:04]} 11. a3 {[%emt 0:07:29]} Bc6 {[%emt 0:02:47]} 12. c4 {[%emt 0:02:54]} Nb6 {[%emt 0:00:04]} 13. b4 {[%emt 0:02:58]} a6 {[%emt 0:00:59]} 14. Be3 {[%emt 0:02:41]} Nd7 {[%emt 0:06:02]} 15. f4 {[%emt 0:03:36]} Nf8 {[%emt 0:02:04]} 16. Rd1 {[%emt 0:01:40]} Ng6 {[%emt 0:01:28]} 17. O-O {[%emt 0:02:16]} O-O {[%emt 0:00:44]} 18. Nc3 {[%emt 0:02:42]} Qe8 {[%emt 0:00:31]} 19. Qg4 {[%emt 0:05:17]} Bd7 {[%emt 0:12:15]} 20. Rf3 {[%emt 0:04:34]} Nh8 {[%emt 0:05:25]} 21. Rg3 {[%emt 0:06:00]} g6 {[%emt 0:00:10]} 22. h4 {[%emt 0:02:37]} Kg7 {[%emt 0:06:28]} 23. Ne4 {[%emt 0:06:39]} f5 {[%emt 0:06:25]} 24. exf6+ {[%emt 0:00:21]} Bxf6 {[%emt 0:00:04]} 25. Nxf6 {[%emt 0:01:31]} Rxf6 {[%emt 0:00:03]} 26. Be4 {[%emt 0:03:43]} c6 {[%emt 0:04:21]} 27. Bc1 {[%emt 0:02:31]} Rd8 {[%emt 0:02:23]} 28. Rgd3 {[%emt 0:01:35]} Rf8 {[%emt 0:07:28]} 29. Bb2+ {[%emt 0:00:50]} Kh7 {[%emt 0:00:03]} 30. h5 {[%emt 0:03:42]} Rg8 {[%emt 0:01:49]} 31. Bf6 {[%emt 0:02:10]} Qf7 {[%emt 0:06:10]} 32. Qh4 {[%emt 0:01:52]} 1-0

[Event "44th Chess Olympiad Women 2022"]
[Site "Chennai"]
[Date "2022.08.09"]
[Round "11.47"]
[White "Lebel-Arias, Julia"]
[Black "Moore, Gaybrianna"]
[Result "0-1"]
[ECO "D00"]
[WhiteElo "1660"]
[BlackElo "1335"]
[Annotator "NA RC COMBH"]
[PlyCount "116"]
[EventDate "2022.07.29"]
[EventType "team-tourn"]
[EventCountry "IND"]
[SourceTitle "playchess.com"]
[Source "ChessBase"]
[SourceQuality "1"]
[WhiteTeam "Monaco"]
[BlackTeam "Barbados"]
[WhiteTeamCountry "MNC"]
[BlackTeamCountry "BAR"]
[TimeControl "40/5400+30:1800+30"]

1. d4 {[%emt 0:00:03]} d5 {[%emt 0:00:12]} 2. e3 {[%emt 0:00:09]} Nf6 {[%emt 0:01:43]} 3. Bd3 {[%emt 0:00:11]} c5 {[%emt 0:01:42]} 4. c3 {[%emt 0:00:12]} Nc6 {[%emt 0:01:32]} 5. f4 {[%emt 0:00:57]} Bg4 {[%emt 0:02:05]} 6. Nf3 {[%emt 0:00:14]} e6 {[%emt 0:00:28]} 7. Nbd2 {[%emt 0:00:28]} Bd6 {[%emt 0:00:54]} 8. a3 {[%emt 0:00:44]} cxd4 {[%emt 0:01:19]} 9. cxd4 {[%emt 0:00:21]} O-O {[%emt 0:00:55]} 10. O-O {[%emt 0:00:10]} a6 {[%emt 0:05:53]} 11. Qc2 {[%emt 0:00:32]} Rc8 {[%emt 0:00:54]} 12. Qb1 {[%emt 0:00:18]} Qd7 {[%emt 0:02:32]} 13. Ne5 {[%emt 0:00:22]} Bxe5 {[%emt 0:01:30]} 14. fxe5 {[%emt 0:00:14]} Ne4 {[%emt 0:01:03]} 15. Nxe4 {[%emt 0:00:19]} dxe4 {[%emt 0:00:06]} 16. Bxe4 {[%emt 0:00:23]} h6 {[%emt 0:00:10]} 17. Qd3 {[%emt 0:03:53]} Rfd8 {[%emt 0:01:22]} 18. Bxc6 {[%emt 0:04:19]} Qxc6 {[%emt 0:01:34]} 19. Rf4 {[%emt 0:02:48]} Bf5 {[%emt 0:01:30]} 20. e4 {[%emt 0:01:00]} Bg6 {[%emt 0:00:20]} 21. Bd2 {[%emt 0:01:45]} Qc2 {[%emt 0:01:07]} 22. Qxc2 {[%emt 0:00:31]} Rxc2 {[%emt 0:00:07]} 23. Bc3 {[%emt 0:00:11]} Re2 {[%emt 0:00:19]} 24. Kf1 {[%emt 0:02:06]} Rxe4 {[%emt 0:00:09]} 25. Rxe4 {[%emt 0:00:43]} Bxe4 {[%emt 0:00:07]} 26. Kf2 {[%emt 0:00:10]} Bd5 {[%emt 0:01:14]} 27. g4 {[%emt 0:00:38]} f6 {[%emt 0:00:47]} 28. Ke3 {[%emt 0:03:51]} fxe5 {[%emt 0:00:48]} 29. dxe5 {[%emt 0:00:43]} Rf8 {[%emt 0:00:05]} 30. Rg1 {[%emt 0:02:26]} Rf3+ {[%emt 0:00:16]} 31. Kd4 {[%emt 0:01:56]} Rh3 {[%emt 0:00:15]} 32. g5 {[%emt 0:00:14]} Rxh2 {[%emt 0:01:51]} 33. gxh6 {[%emt 0:00:10]} Rxh6 {[%emt 0:00:14]} 34. Rg4 {[%emt 0:00:58]} Rh5 {[%emt 0:03:13]} 35. Kc5 {[%emt 0:00:12]} Kf7 {[%emt 0:02:44]} 36. Kd6 {[%emt 0:00:12]} g5 {[%emt 0:02:46]} 37. Ba5 {[%emt 0:02:15]} Kg6 {[%emt 0:00:41]} 38. Bd8 {[%emt 0:00:21]} Kf5 {[%emt 0:00:22]} 39. Rg1 {[%emt 0:00:22]} g4 {[%emt 0:01:10]} 40. Rf1+ {[%emt 0:05:58]} Ke4 {[%emt 0:00:56]} 41. Bb6 {[%emt 0:30:37]} g3 {[%emt 0:31:22]} 42. Rg1 {[%emt 0:03:57]} Kf3 {[%emt 0:00:55]} 43. Rf1+ {[%emt 0:01:59]} Kg2 {[%emt 0:00:36]} 44. Rg1+ {[%emt 0:00:09]} Kh2 {[%emt 0:00:26]} 45. Rd1 {[%emt 0:01:20]} Rf5 {[%emt 0:03:23]} 46. Rxd5 {[%emt 0:01:25]} exd5 {[%emt 0:00:59]} 47. e6 {[%emt 0:00:13]} g2 {[%emt 0:03:03]} 48. e7 {[%emt 0:00:16]} Rf6+ {[%emt 0:00:27]} 49. Kd7 {[%emt 0:00:45]} Rxb6 {[%emt 0:00:35]} 50. e8=Q {[%emt 0:00:15]} g1=Q {[%emt 0:00:08]} 51. Qh5+ {[%emt 0:01:53]} Kg3 {[%emt 0:01:13]} 52. Qg5+ {[%emt 0:00:35]} Kf2 {[%emt 0:00:42]} 53. Qf4+ {[%emt 0:00:20]} Ke2 {[%emt 0:01:09]} 54. Qe5+ {[%emt 0:01:21]} Qe3 {[%emt 0:00:13]} 55. Qh5+ {[%emt 0:00:27]} Kd2 {[%emt 0:02:27]} 56. Qh2+ {[%emt 0:01:25]} Kc1 {[%emt 0:01:28]} 57. Qh1+ {[%emt 0:01:38]} Kxb2 {[%emt 0:00:29]} 58. Qxd5 {[%emt 0:02:45]} Qe6+ {[%emt 0:00:06]} 0-1

[Event "44th Chess Olympiad Women 2022"]
[Site "Chennai"]
[Date "2022.08.09"]
[Round "11.47"]
[White "Wilson, Hannah"]
[Black "Berezovska, Svetlana"]
[Result "1/2-1/2"]
[ECO "B43"]
[WhiteElo "1556"]
[BlackElo "1781"]
[Annotator "NA RC COMBH"]
[PlyCount "93"]
[EventDate "2022.07.29"]
[EventType "team-tourn"]
[EventCountry "IND"]
[SourceTitle "playchess.com"]
[Source "ChessBase"]
[SourceQuality "1"]
[WhiteTeam "Barbados"]
[BlackTeam "Monaco"]
[WhiteTeamCountry "BAR"]
[BlackTeamCountry "MNC"]
[TimeControl "40/5400+30:1800+30"]

1. e4 {[%emt 0:00:03]} c5 {[%emt 0:00:04]} 2. Nf3 {[%emt 0:00:05]} e6 {[%emt 0:00:05]} 3. d4 {[%emt 0:00:26]} cxd4 {[%emt 0:00:03]} 4. Nxd4 {[%emt 0:00:07]} a6 {[%emt 0:00:03]} 5. Nc3 {[%emt 0:00:47]} Qc7 {[%emt 0:00:07]} 6. Bd3 {[%emt 0:01:13]} Nf6 {[%emt 0:00:21]} 7. O-O {[%emt 0:01:02]} Bc5 {[%emt 0:00:49]} 8. Nb3 {[%emt 0:02:04]} Be7 {[%emt 0:00:36]} 9. Re1 {[%emt 0:02:33]} d6 {[%emt 0:00:41]} 10. a4 {[%emt 0:02:42]} b6 {[%emt 0:01:12]} 11. Qf3 {[%emt 0:03:19]} e5 {[%emt 0:14:19]} 12. Bg5 {[%emt 0:05:24]} Nbd7 {[%emt 0:04:19]} 13. Rad1 {[%emt 0:11:20]} O-O {[%emt 0:03:20]} 14. Qe2 {[%emt 0:09:33]} Bb7 {[%emt 0:02:09]} 15. Be3 {[%emt 0:04:10]} Rfe8 {[%emt 0:05:01]} 16. Nd5 {[%emt 0:04:47]} Nxd5 {[%emt 0:00:41]} 17. exd5 {[%emt 0:00:07]} Nf6 {[%emt 0:01:08]} 18. c4 {[%emt 0:01:44]} Bc8 {[%emt 0:15:03]} 19. f3 {[%emt 0:03:57]} Bd7 {[%emt 0:01:46]} 20. Ra1 {[%emt 0:02:30]} Rab8 {[%emt 0:07:01]} 21. Nd2 {[%emt 0:02:22]} Qb7 {[%emt 0:19:40]} 22. b3 {[%emt 0:02:22]} Ra8 {[%emt 0:03:58]} 23. Nf1 {[%emt 0:05:24]} b5 {[%emt 0:01:58]} 24. axb5 {[%emt 0:06:11]} axb5 {[%emt 0:00:16]} 25. Ng3 {[%emt 0:01:29]} g6 {[%emt 0:03:01]} 26. Qd2 {[%emt 0:04:10]} Rec8 {[%emt 0:02:22]} 27. Kh1 {[%emt 0:03:59]} Bd8 {[%emt 0:03:28]} 28. Rec1 {[%emt 0:03:55]} Bb6 {[%emt 0:02:18]} 29. Bg5 {[%emt 0:03:37]} Ne8 {[%emt 0:02:02]} 30. Ne4 {[%emt 0:02:45]} f5 {[%emt 0:00:22]} 31. Nf6+ {[%emt 0:01:16]} Nxf6 {[%emt 0:00:10]} 32. Bxf6 {[%emt 0:00:05]} Be8 {[%emt 0:00:24]} 33. Qg5 {[%emt 0:01:58]} Qd7 {[%emt 0:05:13]} 34. g4 {[%emt 0:04:23]} fxg4 {[%emt 0:01:09]} 35. fxg4 {[%emt 0:01:07]} bxc4 {[%emt 0:00:16]} 36. bxc4 {[%emt 0:01:44]} Bd8 {[%emt 0:00:41]} 37. Bxd8 {[%emt 0:01:00]} Rxd8 {[%emt 0:00:35]} 38. Rxa8 {[%emt 0:01:51]} Rxa8 {[%emt 0:00:06]} 39. Bf5 {[%emt 0:01:02]} Qc7 {[%emt 0:01:03]} 40. Be6+ {[%emt 0:00:35]} Bf7 {[%emt 0:01:10]} 41. Qf6 {[%emt 0:31:13]} Bxe6 {[%emt 0:04:09]} 42. Qxe6+ {[%emt 0:00:00]} Kg7 {[%emt 0:00:37]} 43. Rf1 {[%emt 0:00:00]} Rf8 {[%emt 0:05:24]} 44. Rxf8 {[%emt 0:00:00]} Kxf8 {[%emt 0:00:04]} 45. Qf6+ {[%emt 0:00:00]} Kg8 {[%emt 0:00:32]} 46. g5 {[%emt 0:00:00]} Qxc4 {[%emt 0:08:34]} 47. Qd8+ {[%emt 0:00:00]} 1/2-1/2

[Event "44th Chess Olympiad Women 2022"]
[Site "Chennai"]
[Date "2022.08.09"]
[Round "11.47"]
[White "Eversley, Kiarra"]
[Black "Berezovsky, Fiorina"]
[Result "0-1"]
[ECO "B43"]
[WhiteElo "1356"]
[BlackElo "1544"]
[Annotator "NA RC COMBH"]
[PlyCount "62"]
[EventDate "2022.07.29"]
[EventType "team-tourn"]
[EventCountry "IND"]
[SourceTitle "playchess.com"]
[Source "ChessBase"]
[SourceQuality "1"]
[WhiteTeam "Barbados"]
[BlackTeam "Monaco"]
[WhiteTeamCountry "BAR"]
[BlackTeamCountry "MNC"]
[TimeControl "40/5400+30:1800+30"]

1. e4 {[%emt 0:00:04]} c5 {[%emt 0:00:16]} 2. Nf3 {[%emt 0:00:08]} e6 {[%emt 0:00:35]} 3. d4 {[%emt 0:00:10]} cxd4 {[%emt 0:00:14]} 4. Nxd4 {[%emt 0:00:08]} a6 {[%emt 0:00:16]} 5. Bd3 {[%emt 0:01:17]} Qc7 {[%emt 0:01:09]} 6. Nc3 {[%emt 0:01:42]} Nf6 {[%emt 0:01:44]} 7. Bg5 {[%emt 0:09:43]} Be7 {[%emt 0:02:20]} 8. f4 {[%emt 0:00:57]} d6 {[%emt 0:08:00]} 9. Nf3 {[%emt 0:07:41]} Nc6 {[%emt 0:08:01]} 10. Qd2 {[%emt 0:01:43]} b5 {[%emt 0:03:41]} 11. a3 {[%emt 0:01:09]} O-O {[%emt 0:01:54]} 12. O-O {[%emt 0:00:41]} Bb7 {[%emt 0:04:46]} 13. Rae1 {[%emt 0:11:28]} h6 {[%emt 0:06:02]} 14. Bh4 {[%emt 0:01:14]} Nd7 {[%emt 0:06:12]} 15. Bxe7 {[%emt 0:02:13]} Nxe7 {[%emt 0:01:10]} 16. f5 {[%emt 0:03:04]} Qc5+ {[%emt 0:05:22]} 17. Qe3 {[%emt 0:05:11]} Qxe3+ {[%emt 0:01:49]} 18. Rxe3 {[%emt 0:00:02]} e5 {[%emt 0:01:25]} 19. b4 {[%emt 0:01:39]} Rac8 {[%emt 0:02:20]} 20. Nd1 {[%emt 0:00:35]} Nb6 {[%emt 0:02:11]} 21. Nb2 {[%emt 0:03:03]} Rc3 {[%emt 0:04:35]} 22. Ra1 {[%emt 0:03:57]} Nc4 {[%emt 0:03:52]} 23. Bxc4 {[%emt 0:00:14]} Rxe3 {[%emt 0:00:37]} 24. Bd3 {[%emt 0:00:03]} Bxe4 {[%emt 0:02:02]} 25. Nd1 {[%emt 0:02:23]} Rxd3 {[%emt 0:02:03]} 26. cxd3 {[%emt 0:00:14]} Bxd3 {[%emt 0:00:09]} 27. Ne3 {[%emt 0:00:36]} Bxf5 {[%emt 0:01:39]} 28. Rd1 {[%emt 0:01:07]} e4 {[%emt 0:05:03]} 29. Nh4 {[%emt 0:01:22]} Be6 {[%emt 0:00:49]} 30. g3 {[%emt 0:01:00]} g5 {[%emt 0:01:41]} 31. Nhg2 {[%emt 0:00:09]} d5 {[%emt 0:00:39]} 0-1

[Event "44th Chess Olympiad Women 2022"]
[Site "Chennai"]
[Date "2022.08.09"]
[Round "11.48"]
[White "Bwalya Mulwale, Lubuuto"]
[Black "Vilhete, Vania Fausto Da T."]
[Result "1/2-1/2"]
[ECO "D02"]
[WhiteElo "1751"]
[BlackElo "1701"]
[Annotator "NA RC COMBH"]
[PlyCount "138"]
[EventDate "2022.07.29"]
[EventType "team-tourn"]
[EventCountry "IND"]
[SourceTitle "playchess.com"]
[Source "ChessBase"]
[SourceQuality "1"]
[WhiteTeam "Zambia"]
[BlackTeam "Mozambique"]
[WhiteTeamCountry "ZAM"]
[BlackTeamCountry "MOZ"]
[TimeControl "40/5400+30:1800+30"]

1. d4 {[%emt 0:00:04]} Nf6 {[%emt 0:00:10]} 2. Nf3 {[%emt 0:00:14]} e6 {[%emt 0:00:06]} 3. Bf4 {[%emt 0:00:16]} d5 {[%emt 0:00:44]} 4. e3 {[%emt 0:00:07]} c5 {[%emt 0:00:09]} 5. c3 {[%emt 0:00:07]} Nc6 {[%emt 0:00:20]} 6. Bd3 {[%emt 0:00:36]} h6 {[%emt 0:00:41]} 7. Nbd2 {[%emt 0:00:51]} Be7 {[%emt 0:00:10]} 8. Rc1 {[%emt 0:03:23]} Bd7 {[%emt 0:04:53]} 9. Bb1 {[%emt 0:01:00]} Rc8 {[%emt 0:00:23]} 10. h3 {[%emt 0:02:58]} a6 {[%emt 0:00:07]} 11. O-O {[%emt 0:01:19]} b5 {[%emt 0:00:22]} 12. dxc5 {[%emt 0:01:08]} Bxc5 {[%emt 0:00:25]} 13. e4 {[%emt 0:02:39]} dxe4 {[%emt 0:12:00]} 14. Nxe4 {[%emt 0:00:35]} Nxe4 {[%emt 0:00:58]} 15. Bxe4 {[%emt 0:00:14]} O-O {[%emt 0:04:46]} 16. Qe2 {[%emt 0:01:43]} Qf6 {[%emt 0:02:44]} 17. Bg3 {[%emt 0:00:30]} Qe7 {[%emt 0:11:15]} 18. Rfd1 {[%emt 0:01:12]} Rfd8 {[%emt 0:01:45]} 19. Rd2 {[%emt 0:07:29]} Be8 {[%emt 0:04:38]} 20. Rcd1 {[%emt 0:00:22]} Rxd2 {[%emt 0:02:43]} 21. Rxd2 {[%emt 0:00:04]} Rd8 {[%emt 0:07:10]} 22. b4 {[%emt 0:02:03]} Bb6 {[%emt 0:08:06]} 23. Qd1 {[%emt 0:00:38]} Rxd2 {[%emt 0:06:25]} 24. Qxd2 {[%emt 0:00:03]} Qd7 {[%emt 0:02:30]} 25. Qxd7 {[%emt 0:00:11]} Bxd7 {[%emt 0:00:29]} 26. Ne5 {[%emt 0:00:27]} Nxe5 {[%emt 0:00:35]} 27. Bxe5 {[%emt 0:00:06]} Bc8 {[%emt 0:00:28]} 28. Bd6 {[%emt 0:01:10]} Bd8 {[%emt 0:03:14]} 29. Bd3 {[%emt 0:00:35]} Bd7 {[%emt 0:08:38]} 30. c4 {[%emt 0:00:47]} bxc4 {[%emt 0:00:28]} 31. Bxc4 {[%emt 0:00:04]} Bb5 {[%emt 0:01:52]} 32. Bb3 {[%emt 0:02:38]} Bb6 {[%emt 0:01:11]} 33. a4 {[%emt 0:00:47]} Bd3 {[%emt 0:00:39]} 34. g3 {[%emt 0:03:08]} g6 {[%emt 0:01:40]} 35. Bf4 {[%emt 0:00:43]} Kg7 {[%emt 0:00:34]} 36. Be3 {[%emt 0:00:07]} Bxe3 {[%emt 0:05:35]} 37. fxe3 {[%emt 0:00:02]} Kf6 {[%emt 0:00:19]} 38. Kf2 {[%emt 0:01:06]} Ke5 {[%emt 0:01:38]} 39. Ba2 {[%emt 0:05:54]} f5 {[%emt 0:05:33]} 40. Bb3 {[%emt 0:02:09]} g5 {[%emt 0:02:07]} 41. h4 {[%emt 0:31:10]} gxh4 {[%emt 0:31:04]} 42. gxh4 {[%emt 0:00:39]} Kd6 {[%emt 0:01:10]} 43. Kf3 {[%emt 0:01:59]} e5 {[%emt 0:00:00]} 44. Kg3 {[%emt 0:00:00]} Kc6 {[%emt 0:00:00]} 45. Be6 {[%emt 0:00:00]} Kd6 {[%emt 0:00:00]} 46. Bb3 {[%emt 0:00:00]} Kc6 {[%emt 0:00:00]} 47. Kf2 {[%emt 0:00:00]} Kd6 {[%emt 0:00:00]} 48. Ke1 {[%emt 0:00:00]} f4 {[%emt 0:00:00]} 49. exf4 {[%emt 0:00:00]} exf4 {[%emt 0:00:00]} 50. Kf2 {[%emt 0:00:00]} Ke5 {[%emt 0:00:00]} 51. Bd1 {[%emt 0:00:00]} Bf5 {[%emt 0:00:00]} 52. b5 {[%emt 0:00:00]} axb5 {[%emt 0:00:00]} 53. axb5 {[%emt 0:00:00]} Kd5 {[%emt 0:00:00]} 54. Be2 {[%emt 0:00:00]} Bc8 {[%emt 0:00:00]} 55. Kf3 {[%emt 0:00:00]} Ke5 {[%emt 0:00:00]} 56. b6 {[%emt 0:00:00]} Bb7+ {[%emt 0:00:00]} 57. Kf2 {[%emt 0:00:00]} Kf5 {[%emt 0:00:00]} 58. Bf3 {[%emt 0:00:00]} Ba6 {[%emt 0:00:00]} 59. Kg2 {[%emt 0:00:00]} Bc8 {[%emt 0:00:00]} 60. Kf2 {[%emt 0:00:00]} Ba6 {[%emt 0:00:00]} 61. Ke1 {[%emt 0:00:00]} Bc8 {[%emt 0:04:10]} 62. Kd2 {[%emt 0:00:00]} Ke5 {[%emt 0:02:37]} 63. b7 {[%emt 0:00:00]} Bxb7 {[%emt 0:00:30]} 64. Bxb7 {[%emt 0:00:00]} Kf6 {[%emt 0:00:14]} 65. Bf3 {[%emt 0:00:53]} Kg7 {[%emt 0:00:20]} 66. Kd3 {[%emt 0:00:21]} Kh8 {[%emt 0:00:14]} 67. Ke4 {[%emt 0:00:19]} Kg7 {[%emt 0:00:33]} 68. Kxf4 {[%emt 0:00:42]} Kh8 {[%emt 0:00:11]} 69. Be4 {[%emt 0:00:22]} h5 {[%emt 0:00:21]} 1/2-1/2